fUST/lending_fUST_20240220
["ID","MTS","AMOUNT","RATE_DAILY","PERIOD"]
[314455283,1708366253360,-1064.99,0.00027945,2]
[314455284,1708366253370,-500.0,0.00027945,2]
[314455285,1708366253380,-779.59,0.00027945,2]
[314455286,1708366253390,-500.0,0.00027945,2]
[314455287,1708366253399,-500.0,0.00027945,2]
[314455288,1708366253408,-500.0,0.00027945,2]
[314455289,1708366253418,-500.0,0.00027945,2]
[314455290,1708366253427,-707.3,0.00027945,2]
[314455291,1708366253437,-2715.12,0.00027945,2]
[314455292,1708366253446,-626.37925195,0.00027945,2]
[314455293,1708366253455,-4354.51,0.00027945,2]
[314455294,1708366253465,-500.0,0.00027945,2]
[314455295,1708366253476,-730.34,0.00027945,2]
[314455296,1708366253485,-500.0,0.00027945,2]
[314455297,1708366253495,-500.0,0.00027945,2]
[314455298,1708366253504,-762.6,0.00027945,2]
[314455299,1708366253513,-500.0,0.00027945,2]
[314455300,1708366253522,-6461.04,0.00027945,2]
[314455301,1708366253532,-500.0,0.00027945,2]
[314455302,1708366253541,-2367.21,0.00027945,2]
[314455303,1708366253550,-500.0,0.00027945,2]
[314455304,1708366253560,-500.0,0.00027945,2]
[314455305,1708366253569,-500.0,0.00027945,2]
[314455306,1708366253579,-500.0,0.00027945,2]
[314455307,1708366253588,-500.0,0.00027945,2]
[314455308,1708366253597,-356.40121627,0.00027945,2]
[314455309,1708366253607,-872.61,0.00027945,2]
[314455310,1708366253616,-5944.51,0.00027945,2]
[314455311,1708366253626,-500.0,0.00027945,2]
[314455312,1708366253635,-500.0,0.00027945,2]
[314455313,1708366253644,-500.0,0.00027945,2]
[314455314,1708366253654,-500.0,0.00027945,2]
[314455315,1708366253663,-500.0,0.00027945,2]
[314455316,1708366253672,-500.0,0.00027945,2]
[314455317,1708366253681,-500.0,0.00027945,2]
[314455318,1708366253690,-500.0,0.00027945,2]
[314455319,1708366253699,-500.0,0.00027945,2]
[314455320,1708366253709,-500.0,0.00027945,2]
[314455321,1708366253718,-23982.7,0.00027945,2]
[314455322,1708366253727,-500.0,0.00027945,2]
[314455323,1708366253736,-30584.37,0.00027945,2]
[314455324,1708366253746,-500.0,0.00027945,2]
[314455325,1708366253755,-1000.0,0.00027945,2]
[314455326,1708366253764,-500.0,0.00027945,2]
[314455327,1708366253773,-740.69,0.00027945,2]
[314455328,1708366253783,-1245.39,0.00027945,2]
[314455329,1708366253792,-500.0,0.00027945,2]
[314455330,1708366253801,-204.4664935,0.00027945,2]
[314455331,1708366253810,-500.0,0.00027945,2]
[314455332,1708366253819,-2474.13,0.00027945,2]
[314455333,1708366253828,-1275.92,0.00027945,2]
[314455334,1708366253837,-1315.7,0.00027945,2]
[314455335,1708366253846,-500.0,0.00027945,2]
[314455336,1708366253855,-500.0,0.00027945,2]
[314455337,1708366253864,-500.0,0.00027945,2]
[314455338,1708366253873,-21614.36,0.00027945,2]
[314455339,1708366253882,-500.0,0.00027945,2]
[314455340,1708366253891,-500.0,0.00027945,2]
[314455341,1708366253901,-15312.26,0.00027945,2]
[314455342,1708366253910,-500.0,0.00027945,2]
[314455343,1708366253919,-4282.84,0.00027945,2]
[314455344,1708366253928,-3516.89,0.00027945,2]
[314455345,1708366253937,-11001.63,0.00027945,2]
[314455346,1708366253946,-33561.85,0.00027945,2]
[314455347,1708366253956,-500.0,0.00027945,2]
[314455348,1708366253965,-531.9,0.00027945,2]
[314455349,1708366253975,-729.88,0.00027945,2]
[314455350,1708366253984,-390.0,0.00027945,2]
[314455351,1708366253993,-500.0,0.00027945,2]
[314455352,1708366254002,-151.0,0.00027945,2]
[314455353,1708366254011,-15399.97,0.00027945,2]
[314455354,1708366254021,-500.0,0.00027945,2]
[314455355,1708366254030,-500.0,0.00027945,2]
[314455356,1708366254039,-3863.25,0.00027945,2]
[314455357,1708366254048,-500.0,0.00027945,2]
[314455358,1708366254057,-560.2,0.00027945,2]
[314455359,1708366254066,-656.43,0.00027945,2]
[314455360,1708366254075,-500.0,0.00027945,2]
[314455361,1708366254085,-500.0,0.00027945,2]
[314455362,1708366254093,-500.0,0.00027945,2]
[314455363,1708366254102,-3320.73,0.00027945,2]
[314455364,1708366254111,-4272.48,0.00027945,2]
[314455365,1708366254120,-500.0,0.00027945,2]
[314455366,1708366254129,-1896.89,0.00027945,2]
[314455367,1708366254138,-500.0,0.00027945,2]
[314455368,1708366254147,-500.0,0.00027945,2]
[314455369,1708366254157,-4402.03,0.00027945,2]
[314455370,1708366254166,-500.0,0.00027945,2]
[314455371,1708366254175,-500.0,0.00027945,2]
[314455372,1708366254184,-500.0,0.00027945,2]
[314455373,1708366254194,-1088.41,0.00027945,2]
[314455374,1708366254204,-500.0,0.00027945,2]
[314455375,1708366254213,-500.0,0.00027945,2]
[314455376,1708366254222,-500.0,0.00027945,2]
[314455377,1708366254233,-1021.66650123,0.00027945,2]
[314455378,1708366254242,-3266.94,0.00027945,2]
[314455379,1708366254251,-500.0,0.00027945,2]
[314455380,1708366254260,-805.52,0.00027945,2]
[314455381,1708366254270,-500.0,0.00027945,2]
[314455382,1708366254279,-941.6,0.00027945,2]
[314455383,1708366254291,-500.0,0.00027945,2]
[314455384,1708366254300,-1102.06,0.00027945,2]
[314455385,1708366254310,-1655.98,0.00027945,2]
[314455386,1708366254319,-500.0,0.00027945,2]
[314455387,1708366254328,-450.02809294,0.00027945,2]
[314455388,1708366254337,-500.0,0.00027945,2]
[314455389,1708366254346,-4792.07,0.00027945,2]
[314455390,1708366254355,-500.0,0.00027945,2]
[314455391,1708366254367,-545.96363307,0.00027945,2]
[314455392,1708366254378,-500.0,0.00027945,2]
[314455393,1708366254387,-500.0,0.00027945,2]
[314455394,1708366254396,-284.9287367,0.00027945,2]
[314455395,1708366254406,-500.0,0.00027945,2]
[314455396,1708366254415,-603.51565486,0.00027945,2]
[314455397,1708366254424,-1953.34,0.00027945,2]
[314455398,1708366254433,-500.0,0.00027945,2]
[314455399,1708366254442,-3372.94,0.00027945,2]
[314455400,1708366254451,-500.0,0.00027945,2]
[314455401,1708366254460,-644.54,0.00027945,2]
[314455402,1708366254469,-467.11278956,0.00027945,2]
[314455403,1708366254480,-500.0,0.00027945,2]
[314455404,1708366254489,-500.0,0.00027945,2]
[314455405,1708366254498,-227.12057399,0.00028,7]
[314455406,1708366254507,-1000.0,0.00028,28]
[314455407,1708366254516,-300.0,0.00028001,2]
[314455408,1708366254525,-500.0,0.00028082,2]
[314455409,1708366254535,-382.0,0.00028109,2]
[314455410,1708366254545,-300.0,0.0002817,2]
[314455411,1708366254555,-5000.0,0.00028211,5]
[314455412,1708366254565,-500.0,0.00028219,2]
[314455413,1708366254574,-500.0,0.00028219,2]
[314455414,1708366254584,-502.00295055,0.00028219,2]
[314455415,1708366254593,-500.0,0.00028219,2]
[314455416,1708366254603,-500.0,0.00028219,2]
[314455417,1708366254612,-500.0,0.00028219,2]
[314455418,1708366254621,-954.69,0.00028219,2]
[314455419,1708366254630,-152.01702042,0.00028219,2]
[314455420,1708366254639,-500.0,0.00028219,2]
[314455421,1708366254648,-500.0,0.00028219,2]
[314455422,1708366254658,-500.0,0.00028219,2]
[314455423,1708366254667,-200.0,0.00028219,2]
[314455424,1708366254676,-500.0,0.00028219,2]
[314455425,1708366254685,-1067.21,0.00028219,2]
[314455426,1708366254695,-621.77,0.00028219,2]
[314455427,1708366254703,-1291.91,0.00028219,2]
[314455428,1708366254713,-500.0,0.00028219,2]
[314455429,1708366254722,-500.0,0.00028219,2]
[314455430,1708366254735,-500.0,0.00028219,2]
[314455431,1708366254744,-500.0,0.00028219,2]
[314455432,1708366254754,-541.22,0.00028219,2]
[314455433,1708366254763,-1820.61,0.00028219,2]
[314455434,1708366254772,-496.61633453,0.00028219,2]
[314455435,1708366254781,-500.0,0.00028219,2]
[314455436,1708366254791,-520.0,0.00028219,2]
[314455437,1708366254800,-500.0,0.00028219,2]
[314455438,1708366254810,-614.62,0.00028219,2]
[314455439,1708366254819,-500.0,0.00028219,2]
[314455440,1708366254828,-500.0,0.00028219,2]
[314455441,1708366254837,-500.0,0.00028219,2]
[314455442,1708366254847,-500.0,0.00028219,2]
[314455443,1708366254855,-500.0,0.00028219,2]
[314455444,1708366254865,-500.0,0.00028219,2]
[314455445,1708366254874,-500.0,0.00028219,2]
[314455446,1708366254883,-500.0,0.00028219,2]
[314455447,1708366254892,-537.2,0.00028219,2]
[314455448,1708366254901,-532.05,0.00028219,2]
[314455449,1708366254911,-500.0,0.00028219,2]
[314455450,1708366254920,-500.0,0.00028219,2]
[314455451,1708366254929,-500.0,0.00028219,2]
[314455452,1708366254938,-500.0,0.00028219,2]
[314455453,1708366254947,-2350.38,0.00028219,2]
[314455454,1708366254957,-500.0,0.00028219,2]
[314455455,1708366254966,-579.52193235,0.00028219,2]
[314455456,1708366254976,-629.63359251,0.00028219,2]
[314455457,1708366254985,-500.0,0.00028219,2]
[314455458,1708366254995,-500.0,0.00028219,2]
[314455459,1708366255004,-543.39380708,0.00028219,2]
[314455460,1708366255013,-500.0,0.00028219,2]
[314455461,1708366255022,-500.0,0.00028219,2]
[314455462,1708366255031,-1153.17,0.00028219,2]
[314455463,1708366255040,-500.0,0.00028219,2]
[314455464,1708366255050,-500.0,0.00028219,2]
[314455465,1708366255059,-500.0,0.00028219,2]
[314455466,1708366255068,-1024.68,0.00028219,2]
[314455467,1708366255077,-500.0,0.00028219,2]
[314455468,1708366255086,-1068.83,0.00028219,2]
[314455469,1708366255095,-994.78,0.00028219,2]
[314455470,1708366255104,-454.44949422,0.00028219,2]
[314455471,1708366255114,-213.64236985,0.00028219,2]
[314455472,1708366255122,-555.64,0.00028219,2]
[314455473,1708366255131,-500.0,0.00028219,2]
[314455474,1708366255140,-500.0,0.00028219,2]
[314455475,1708366255149,-500.0,0.00028219,2]
[314455476,1708366255158,-500.0,0.00028219,2]
[314455477,1708366255167,-570.23477413,0.00028219,2]
[314455478,1708366255176,-500.0,0.00028219,2]
[314455479,1708366255185,-500.0,0.00028219,2]
[314455480,1708366255195,-500.0,0.00028219,2]
[314455481,1708366255204,-500.0,0.00028219,2]
[314455482,1708366255214,-500.0,0.00028219,2]
[314455483,1708366255223,-500.0,0.00028219,2]
[314455484,1708366255233,-574.06632174,0.00028219,2]
[314455485,1708366255243,-500.0,0.00028219,2]
[314455486,1708366255252,-500.0,0.00028219,2]
[314455487,1708366255261,-500.0,0.00028219,2]
[314455488,1708366255271,-500.0,0.00028219,2]
[314455489,1708366255282,-596.56,0.00028219,2]
[314455490,1708366255294,-500.0,0.00028219,2]
[314455491,1708366255304,-500.0,0.00028219,2]
[314455492,1708366255315,-500.0,0.00028219,2]
[314455493,1708366255331,-500.0,0.00028219,2]
[314455494,1708366255350,-500.0,0.00028219,2]
[314455495,1708366255360,-623.47,0.00028219,2]
[314455496,1708366255370,-1317.61,0.00028219,2]
[314455497,1708366255379,-500.0,0.00028219,2]
[314455498,1708366255388,-2211.12,0.00028219,2]
[314455499,1708366255398,-500.0,0.00028219,2]
[314455500,1708366255407,-546.13,0.00028219,2]
[314455501,1708366255417,-1412.23,0.00028219,2]
[314455502,1708366255426,-167.87359073,0.00028219,2]
[314455503,1708366255435,-500.0,0.00028219,2]
[314455504,1708366255445,-656.3,0.00028219,2]
[314455505,1708366255454,-500.0,0.00028219,2]
[314455506,1708366255463,-500.0,0.00028219,2]
[314455507,1708366255472,-500.0,0.00028219,2]
[314455508,1708366255482,-500.0,0.00028219,2]
[314455509,1708366255491,-562.12,0.00028219,2]
[314455510,1708366255500,-6084.2,0.00028219,2]
[314455511,1708366255509,-500.0,0.00028219,2]
[314455512,1708366255518,-2947.31,0.00028219,2]
[314455513,1708366255527,-547.16,0.00028219,2]
[314455514,1708366255537,-500.0,0.00028219,2]
[314455515,1708366255546,-652.39,0.00028219,2]
[314455516,1708366255555,-575.38298129,0.00028219,2]
[314455517,1708366255565,-500.0,0.00028219,2]
[314455518,1708366255575,-500.0,0.00028219,2]
[314455519,1708366255584,-500.0,0.00028219,2]
[314455520,1708366255594,-5468.83,0.00028219,2]
[314455521,1708366255603,-500.0,0.00028219,2]
[314455522,1708366255612,-500.0,0.00028219,2]
[314455523,1708366255621,-1336.37,0.00028219,2]
[314455524,1708366255757,-500.0,0.00028219,2]
[314455525,1708366255767,-500.0,0.00028219,2]
[314455526,1708366255776,-500.0,0.00028219,2]
[314455527,1708366255786,-500.0,0.00028219,2]
[314455528,1708366255794,-608.11,0.00028219,2]
[314455529,1708366255804,-500.0,0.00028219,2]
[314455530,1708366255813,-535.67,0.00028219,2]
[314455531,1708366255823,-500.0,0.00028219,2]
[314455532,1708366255832,-500.0,0.00028219,2]
[314455533,1708366255841,-500.0,0.00028219,2]
[314455534,1708366255851,-968.4,0.00028219,2]
[314455535,1708366255860,-500.0,0.00028219,2]
[314455536,1708366255869,-500.0,0.00028219,15]
[314455537,1708366255878,-500.0,0.00028219,2]
[314455538,1708366255888,-500.0,0.00028219,2]
[314455539,1708366255897,-500.0,0.00028219,2]
[314455540,1708366255906,-500.0,0.00028219,2]
[314455541,1708366255916,-500.0,0.00028219,2]
[314455542,1708366255925,-367.3523558,0.00028219,2]
[314455543,1708366255934,-500.0,0.00028219,2]
[314455544,1708366255943,-500.0,0.00028219,2]
[314455545,1708366255952,-500.0,0.00028219,2]
[314455546,1708366255961,-500.0,0.00028219,2]
[314455547,1708366255971,-500.0,0.00028219,2]
[314455548,1708366255981,-500.0,0.00028219,2]
[314455549,1708366255990,-500.0,0.00028219,2]
[314455550,1708366255999,-500.0,0.00028219,2]
[314455551,1708366256008,-500.0,0.00028219,2]
[314455552,1708366256017,-500.0,0.00028219,2]
[314455553,1708366256026,-500.0,0.00028219,2]
[314455554,1708366256035,-500.0,0.00028219,2]
[314455555,1708366256044,-500.0,0.00028219,2]
[314455556,1708366256053,-500.0,0.00028219,2]
[314455557,1708366256063,-500.0,0.00028219,2]
[314455558,1708366256073,-1984.0,0.00028219,2]
[314455559,1708366256082,-500.0,0.00028219,2]
[314455560,1708366256091,-500.0,0.00028219,2]
[314455561,1708366256100,-274.89925398,0.00028219,2]
[314455562,1708366256109,-500.0,0.00028219,2]
[314455563,1708366256119,-500.0,0.00028219,2]
[314455564,1708366256129,-619.56,0.00028219,2]
[314455565,1708366256138,-500.0,0.00028219,2]
[314455566,1708366256147,-598.11884579,0.00028219,2]
[314455567,1708366256156,-500.0,0.00028219,2]
[314455568,1708366256166,-500.0,0.00028219,2]
[314455569,1708366256175,-500.0,0.00028219,2]
[314455570,1708366256185,-500.0,0.00028219,2]
[314455571,1708366256195,-500.0,0.00028219,2]
[314455572,1708366256204,-800.07,0.00028219,2]
[314455573,1708366256213,-500.0,0.00028219,2]
[314455574,1708366256222,-500.0,0.00028219,2]
[314455575,1708366256232,-378.68376373,0.00028219,2]
[314455576,1708366256242,-918.39,0.00028219,2]
[314455577,1708366256252,-500.0,0.00028219,2]
[314455578,1708366256261,-318.5976955,0.00028219,2]
[314455579,1708366256275,-1486.09,0.00028219,2]
[314455580,1708366256287,-500.0,0.00028219,2]
[314455581,1708366256297,-500.0,0.00028219,2]
[314455582,1708366256306,-500.0,0.00028219,2]
[314455583,1708366256315,-500.0,0.00028219,2]
[314455584,1708366256326,-500.0,0.00028219,2]
[314455585,1708366256335,-512.22,0.00028219,2]
[314455586,1708366256345,-566.08,0.00028219,2]
[314455587,1708366256356,-500.0,0.00028219,2]
[314455588,1708366256365,-500.0,0.00028219,2]
[314455589,1708366256374,-1064.99,0.00028219,2]
[314455590,1708366256383,-509.53631045,0.00028219,2]
[314455591,1708366256393,-779.59,0.00028219,2]
[314455592,1708366256402,-503.51122126,0.00028219,2]
[314455593,1708366256411,-500.0,0.00028219,2]
[314455594,1708366256420,-500.0,0.00028219,2]
[314455595,1708366256429,-707.3,0.00028219,2]
[314455596,1708366256439,-2715.12,0.00028219,2]
[314455597,1708366256449,-500.0,0.00028219,2]
[314455598,1708366256458,-4354.51,0.00028219,2]
[314455599,1708366256467,-500.0,0.00028219,2]
[314455600,1708366256477,-730.34,0.00028219,2]
[314455601,1708366256487,-500.0,0.00028219,2]
[314455602,1708366256496,-500.0,0.00028219,2]
[314455603,1708366256505,-762.6,0.00028219,2]
[314455604,1708366256515,-500.0,0.00028219,2]
[314455605,1708366256524,-6461.04,0.00028219,2]
[314455606,1708366256533,-500.0,0.00028219,2]
[314455607,1708366256543,-2367.21,0.00028219,2]
[314455608,1708366256553,-500.0,0.00028219,2]
[314455609,1708366256563,-500.0,0.00028219,2]
[314455610,1708366256572,-500.0,0.00028219,2]
[314455611,1708366256581,-500.0,0.00028219,2]
[314455612,1708366256590,-500.0,0.00028219,2]
[314455613,1708366256600,-872.61,0.00028219,2]
[314455614,1708366256609,-5944.51,0.00028219,2]
[314455615,1708366256618,-500.0,0.00028219,2]
[314455616,1708366256627,-500.0,0.00028219,2]
[314455617,1708366256637,-500.0,0.00028219,2]
[314455618,1708366256647,-500.0,0.00028219,2]
[314455619,1708366256657,-500.0,0.00028219,2]
[314455620,1708366256666,-500.0,0.00028219,2]
[314455621,1708366256676,-507.63498782,0.00028219,2]
[314455622,1708366256686,-500.0,0.00028219,2]
[314455623,1708366256696,-500.0,0.00028219,2]
[314455624,1708366256705,-500.0,0.00028219,2]
[314455625,1708366256715,-23982.7,0.00028219,2]
[314455626,1708366256724,-500.0,0.00028219,2]
[314455627,1708366256733,-30584.37,0.00028219,2]
[314455628,1708366256743,-500.0,0.00028219,2]
[314455629,1708366256752,-1000.0,0.00028219,2]
[314455630,1708366256762,-500.0,0.00028219,2]
[314455631,1708366256771,-740.69,0.00028219,2]
[314455632,1708366256780,-1245.39,0.00028219,2]
[314455633,1708366256790,-500.0,0.00028219,2]
[314455634,1708366256800,-500.0,0.00028219,2]
[314455635,1708366256809,-2474.13,0.00028219,2]
[314455636,1708366256818,-1315.7,0.00028219,2]
[314455637,1708366256827,-1275.92,0.00028219,2]
[314455638,1708366256837,-500.0,0.00028219,2]
[314455639,1708366256846,-500.0,0.00028219,2]
[314455640,1708366256855,-500.0,0.00028219,2]
[314455641,1708366256865,-21614.36,0.00028219,2]
[314455642,1708366256874,-500.0,0.00028219,2]
[314455643,1708366256884,-500.0,0.00028219,2]
[314455644,1708366256893,-15312.26,0.00028219,2]
[314455645,1708366256902,-500.0,0.00028219,2]
[314455646,1708366256912,-4282.84,0.00028219,2]
[314455647,1708366256921,-3516.89,0.00028219,2]
[314455648,1708366256930,-11001.63,0.00028219,2]
[314455649,1708366256940,-33561.85,0.00028219,2]
[314455650,1708366256949,-500.0,0.00028219,2]
[314455651,1708366256960,-531.9,0.00028219,2]
[314455652,1708366256969,-729.88,0.00028219,2]
[314455653,1708366256978,-390.0,0.00028219,2]
[314455654,1708366256987,-500.0,0.00028219,2]
[314455655,1708366256997,-151.0,0.00028219,2]
[314455656,1708366257006,-15399.97,0.00028219,2]
[314455657,1708366257016,-500.0,0.00028219,2]
[314455658,1708366257025,-500.0,0.00028219,2]
[314455659,1708366257035,-3863.25,0.00028219,2]
[314455660,1708366257045,-267.69446387,0.00028219,2]
[314455661,1708366257054,-560.2,0.00028219,2]
[314455662,1708366257064,-500.0,0.00028219,2]
[314455663,1708366257074,-500.0,0.00028219,2]
[314455664,1708366257083,-656.43,0.00028219,2]
[314455665,1708366257092,-500.0,0.00028219,2]
[314455666,1708366257101,-3320.73,0.00028219,2]
[314455667,1708366257111,-4272.48,0.00028219,2]
[314455668,1708366257120,-500.0,0.00028219,2]
[314455669,1708366257129,-1896.89,0.00028219,2]
[314455670,1708366257139,-500.0,0.00028219,2]
[314455671,1708366257149,-500.0,0.00028219,2]
[314455672,1708366257158,-4402.03,0.00028219,2]
[314455673,1708366257168,-500.0,0.00028219,2]
[314455674,1708366257177,-500.0,0.00028219,2]
[314455675,1708366257186,-500.0,0.00028219,2]
[314455676,1708366257195,-1088.41,0.00028219,2]
[314455677,1708366257204,-500.0,0.00028219,2]
[314455678,1708366257214,-500.0,0.00028219,2]
[314455679,1708366257223,-552.32740034,0.00028219,2]
[314455680,1708366257234,-3266.94,0.00028219,2]
[314455681,1708366257244,-805.52,0.00028219,2]
[314455682,1708366257254,-500.0,0.00028219,2]
[314455683,1708366257263,-500.0,0.00028219,2]
[314455684,1708366257276,-941.6,0.00028219,2]
[314455685,1708366257287,-500.0,0.00028219,2]
[314455686,1708366257297,-1102.06,0.00028219,2]
[314455687,1708366257305,-1655.98,0.00028219,2]
[314455688,1708366257315,-500.0,0.00028219,2]
[314455689,1708366257324,-500.0,0.00028219,2]
[314455690,1708366257333,-4792.07,0.00028219,2]
[314455691,1708366257342,-500.0,0.00028219,2]
[314455692,1708366257352,-500.0,0.00028219,2]
[314455693,1708366257363,-209.96479372,0.00028219,2]
[314455694,1708366257373,-500.0,0.00028219,2]
[314455695,1708366257382,-1953.34,0.00028219,2]
[314455696,1708366257391,-500.0,0.00028219,2]
[314455697,1708366257401,-3372.94,0.00028219,2]
[314455698,1708366257409,-500.0,0.00028219,2]
[314455699,1708366257419,-644.54,0.00028219,2]
[314455700,1708366257428,-500.0,0.00028219,2]
[314455701,1708366257437,-500.0,0.00028219,2]
[314455702,1708366257446,-50000.0,0.0002822,5]
[314455703,1708366257455,-5000.0,0.0002822,5]
[314455704,1708366257465,-2350.81822513,0.00028222,2]
[314455705,1708366257474,-552.132471,0.00028236,2]
[314455706,1708366257484,-341.98068,0.00028236,2]
[314455707,1708366257493,-300.0,0.00028339,2]
[314455708,1708366257503,-500.0,0.00028356,2]
[314455709,1708366257512,-500.0,0.00028493,2]
[314455710,1708366257521,-500.0,0.00028493,2]
[314455711,1708366257530,-500.0,0.00028493,2]
[314455712,1708366257539,-500.0,0.00028493,2]
[314455713,1708366257548,-500.0,0.00028493,2]
[314455714,1708366257560,-954.69,0.00028493,2]
[314455715,1708366257569,-500.0,0.00028493,2]
[314455716,1708366257578,-500.0,0.00028493,2]
[314455717,1708366257587,-500.0,0.00028493,2]
[314455718,1708366257596,-318.49410619,0.00028493,2]
[314455719,1708366257605,-500.0,0.00028493,2]
[314455720,1708366257614,-1067.21,0.00028493,2]
[314455721,1708366257623,-621.77,0.00028493,2]
[314455722,1708366257632,-1291.91,0.00028493,2]
[314455723,1708366257641,-500.0,0.00028493,2]
[314455724,1708366257650,-500.0,0.00028493,2]
[314455725,1708366257660,-500.0,0.00028493,2]
[314455726,1708366257669,-500.0,0.00028493,2]
[314455727,1708366257678,-541.22,0.00028493,2]
[314455728,1708366257687,-1820.61,0.00028493,2]
[314455729,1708366257696,-500.0,0.00028493,2]
[314455730,1708366257705,-520.0,0.00028493,2]
[314455731,1708366257714,-500.0,0.00028493,2]
[314455732,1708366257723,-614.62,0.00028493,2]
[314455733,1708366257734,-500.0,0.00028493,2]
[314455734,1708366257743,-500.0,0.00028493,2]
[314455735,1708366257753,-500.0,0.00028493,2]
[314455736,1708366257762,-500.0,0.00028493,2]
[314455737,1708366257771,-500.0,0.00028493,2]
[314455738,1708366257780,-500.0,0.00028493,2]
[314455739,1708366257789,-500.0,0.00028493,2]
[314455740,1708366257798,-500.0,0.00028493,2]
[314455741,1708366257808,-537.2,0.00028493,2]
[314455742,1708366257817,-532.05,0.00028493,2]
[314455743,1708366257826,-500.0,0.00028493,2]
[314455744,1708366257835,-500.0,0.00028493,2]
[314455745,1708366257845,-500.0,0.00028493,2]
[314455746,1708366257855,-500.0,0.00028493,2]
[314455747,1708366257864,-2350.38,0.00028493,2]
[314455748,1708366257873,-500.0,0.00028493,2]
[314455749,1708366257882,-500.0,0.00028493,2]
[314455750,1708366257892,-500.0,0.00028493,2]
[314455751,1708366257902,-500.0,0.00028493,2]
[314455752,1708366257911,-500.0,0.00028493,2]
[314455753,1708366257920,-1153.17,0.00028493,2]
[314455754,1708366257929,-500.0,0.00028493,2]
[314455755,1708366257938,-500.0,0.00028493,2]
[314455756,1708366257948,-522.83983004,0.00028493,2]
[314455757,1708366257957,-1024.68,0.00028493,2]
[314455758,1708366257968,-500.0,0.00028493,2]
[314455759,1708366257978,-1068.83,0.00028493,2]
[314455760,1708366257987,-994.78,0.00028493,2]
[314455761,1708366257996,-555.64,0.00028493,2]
[314455762,1708366258005,-500.0,0.00028493,2]
[314455763,1708366258015,-500.0,0.00028493,2]
[314455764,1708366258024,-500.0,0.00028493,2]
[314455765,1708366258033,-500.0,0.00028493,2]
[314455766,1708366258042,-500.0,0.00028493,2]
[314455767,1708366258051,-502.6896192,0.00028493,2]
[314455768,1708366258060,-500.0,0.00028493,2]
[314455769,1708366258070,-500.0,0.00028493,2]
[314455770,1708366258079,-500.0,0.00028493,2]
[314455771,1708366258088,-500.0,0.00028493,2]
[314455772,1708366258098,-500.0,0.00028493,2]
[314455773,1708366258107,-500.0,0.00028493,2]
[314455774,1708366258116,-500.0,0.00028493,2]
[314455775,1708366258125,-500.0,0.00028493,2]
[314455776,1708366258134,-596.56,0.00028493,2]
[314455777,1708366258144,-500.0,0.00028493,2]
[314455778,1708366258153,-500.0,0.00028493,2]
[314455779,1708366258162,-628.40418,0.00028493,2]
[314455780,1708366258172,-500.0,0.00028493,2]
[314455781,1708366258181,-500.0,0.00028493,2]
[314455782,1708366258190,-623.47,0.00028493,2]